bitfinex/quotes_ETHUSD_20220101
["timestamp","ask_amount","ask_price","bid_price","bid_amount"]
[1641050517998,0.00113684,3708.8,3708.6,0.6741141]
[1641050518196,0.00113684,3708.8,3708.7,0.67412]
[1641050519322,0.00113684,3708.8,3708.4,0.00113685]
[1641050520124,0.00113684,3708.8,3708.0,0.00341054]
[1641050520320,3.74015927,3708.8,3708.0,0.00341054]
[1641050520921,3.06476243,3708.7,3708.0,0.00341054]
[1641050521428,0.67426,3708.5,3708.0,0.00341054]
[1641050521625,3.73554119,3708.6,3708.0,0.00341054]
[1641050522429,0.67426,3708.3,3708.0,0.00341054]
[1641050526091,0.67426,3708.3,3708.0,0.30341054]
[1641050526532,0.67426,3708.3,3708.1,0.00284212]
[1641050527937,3.06498267,3708.2,3708.1,0.00284212]
[1641050529934,3.06498267,3708.2,3708.0,0.00341054]
[1641050533486,0.67426,3708.3,3708.0,0.00341054]
[1641050537575,0.67426,3708.3,3707.8,0.00454739]
[1641050537979,3.06516278,3708.2,3707.8,0.00454739]
[1641050538382,0.67429,3708.1,3707.8,0.00454739]
[1641050540384,0.67429,3708.1,3707.7,0.00511581]
[1641050541833,0.6743,3707.9,3707.7,0.00511581]
[1641050544139,0.01067096,3707.8,3707.7,0.00511581]
[1641050546392,3.07592333,3707.8,3707.7,0.00511581]
[1641050547388,0.01067096,3707.8,3707.7,0.00511581]
[1641050547790,0.01067096,3707.8,3707.7,1.35355581]
[1641050552881,0.01067096,3707.8,3707.7,2.35355581]
[1641050553081,0.01067096,3707.8,3707.7,2.74055581]
[1641050554083,0.06179029,3708.4,3708.0,1.01108]
[1641050554282,0.06179029,3708.4,3708.3,1.3391709]
[1641050554480,0.06179029,3708.4,3708.3,2.0261709]
[1641050554680,0.06179029,3708.4,3708.3,2.32787617]
[1641050555285,0.0592,3709.1,3708.5,0.33705]
[1641050555487,0.0592,3709.1,3708.8,0.6741]
[1641050555488,0.06178917,3709.0,3708.8,0.6741]
[1641050555694,0.06406286,3709.0,3708.8,0.6741]
[1641050555987,3.12882471,3709.0,3708.8,0.6741]
[1641050556186,3.12882471,3709.0,3708.4,1.34819]
[1641050556438,1.4410564,3709.0,3708.4,1.34819]
[1641050556639,1.4410564,3709.0,3708.4,1.68525]
[1641050556841,1.4410564,3709.0,3708.5,0.6741204]
[1641050557243,1.4410564,3709.0,3708.6,0.67413]
[1641050557244,1.37926723,3709.0,3708.6,0.67413]
[1641050557442,2.05339723,3709.0,3708.6,0.67413]
[1641050557641,3.06476185,3708.9,3708.6,0.67413]
[1641050558044,0.00113684,3708.8,3708.6,0.67413]
[1641050559041,0.67528684,3708.8,3708.6,0.67413]
[1641050559842,0.67528684,3708.8,3708.4,0.67416]
[1641050560271,3.06476185,3708.7,3708.4,0.67416]
[1641050560475,3.73892185,3708.7,3708.4,0.67416]
[1641050561280,3.06476185,3708.6,3708.4,0.67416]
[1641050563583,3.06476185,3708.6,3708.4,1.6853486]
[1641050564228,0.00113684,3708.8,3708.4,1.6853486]
[1641050564427,0.00113684,3708.8,3708.6,0.67403]
[1641050564724,0.00113684,3708.8,3708.6,1.3480568]
[1641050565128,0.00113684,3708.8,3708.6,1.6480568]
[1641050565327,0.00113684,3708.8,3708.6,2.9480568]
[1641050577596,0.00113684,3708.8,3708.7,0.387]
[1641050585084,0.00113684,3708.8,3708.6,1.3480568]
[1641050587940,3.06476185,3709.1,3708.6,1.3480568]
[1641050588239,0.00227369,3709.0,3708.7,0.6741]
[1641050588638,0.00170527,3708.9,3708.7,0.6741]
[1641050589040,0.00113684,3708.8,3708.7,0.6741]
[1641050592588,0.00113684,3708.8,3708.5,0.67414]
[1641050596334,0.00113684,3708.8,3708.5,1.348264]
[1641050596537,0.00113684,3708.8,3708.6,0.67413]
[1641050597584,0.00113684,3708.8,3708.6,1.3482396]
[1641050599288,0.00113684,3708.8,3708.6,0.67413]
[1641050599289,0.67527684,3708.8,3708.6,0.67413]
[1641050600091,3.06476185,3708.7,3708.6,0.67413]
[1641050607493,0.00113684,3708.8,3708.6,0.67413]
[1641050607691,0.00113684,3708.8,3708.6,1.3482016]
[1641050608692,3.06476185,3708.7,3708.6,1.3482016]
[1641050609131,0.00113684,3708.8,3708.6,1.3482016]
[1641050609328,3.06476185,3708.7,3708.6,1.3482016]
[1641050609931,0.00113684,3708.8,3708.6,1.3482016]
[1641050615178,3.06589869,3708.8,3708.6,1.3482016]
[1641050615681,3.06589869,3708.8,3708.6,2.6962774]
[1641050615880,0.00113684,3708.8,3708.7,0.387]
[1641050616082,0.00113684,3708.8,3708.7,2.79452966]
[1641050616329,0.00113684,3708.8,3708.7,3.79452966]
[1641050616536,0.00113684,3708.8,3708.7,1.387]
[1641050616933,0.00113684,3708.8,3708.7,3.40876]
[1641050617135,0.00113684,3708.8,3708.7,5.71280998]
[1641050619236,0.00113684,3708.8,3708.7,5.65280998]
[1641050619437,3.06476185,3709.3,3708.9,0.33698]
[1641050619637,3.06476185,3709.3,3709.1,1.3479361]
[1641050619836,0.00341054,3709.2,3709.1,1.7349361]
[1641050620283,0.00341054,3709.2,3709.1,3.07214722]
[1641050620484,0.00341054,3709.2,3709.1,3.40913722]
[1641050621085,3.06817239,3709.2,3709.1,2.3719261]
[1641050624039,3.06817239,3709.2,3709.1,2.0719261]
[1641050628599,3.06817239,3709.2,3709.1,1.3479361]
[1641050629397,3.06817239,3709.2,3709.1,0.67397]
[1641050630899,3.06817239,3709.2,3708.8,0.67408]
[1641050631100,0.6741,3709.1,3708.8,0.67408]
[1641050631349,0.67694211,3709.1,3708.8,0.67408]
[1641050631550,0.00227369,3709.0,3708.8,0.67408]
[1641050631945,0.00170527,3708.9,3708.8,0.67408]
[1641050638312,0.67416,3708.8,3708.4,0.06178823]
[1641050638711,0.67529684,3708.8,3708.4,0.06178823]
[1641050639343,0.67529684,3708.8,3708.2,1.3481988]
[1641050639544,3.06476185,3708.7,3708.2,1.3481988]
[1641050639842,0.67417,3708.6,3708.4,0.67417]
[1641050640542,3.06476185,3708.5,3708.4,0.67417]
[1641050640942,3.06476185,3708.5,3708.4,0.67530685]
[1641050643803,3.06476185,3708.5,3708.4,0.00113685]
[1641050644408,3.06476185,3708.5,3708.0,0.00341054]
[1641050645015,3.06589869,3708.8,3708.0,0.00341054]
[1641050645216,0.67422,3708.4,3708.0,0.00341054]
[1641050645416,0.67422,3708.4,3708.2,0.6742]
[1641050645815,0.67422,3708.4,3708.3,0.00170527]
[1641050648646,3.73913079,3708.4,3708.3,0.00170527]
[1641050650288,3.73913079,3708.4,3708.3,0.08400527]
[1641050652497,3.06491079,3708.4,3708.3,0.08400527]
[1641050653945,3.06491079,3708.5,3708.3,0.08400527]
[1641050662750,3.73912079,3708.5,3708.3,0.08400527]
[1641050663856,3.06491079,3708.4,3708.3,0.08400527]
[1641050677852,3.05318079,3708.4,3708.3,0.08400527]
[1641050693665,0.67421,3708.5,3708.3,0.08400527]
[1641050694372,2.71319217,3708.4,3708.3,0.08400527]
[1641050694567,4.01319217,3708.4,3707.3,2.71385692]
[1641050694768,4.01319217,3708.4,3706.8,3.2894]
[1641050694769,0.67441,3707.9,3706.8,6.00325692]
[1641050694968,15.78,3708.3,3707.4,0.00511582]
[1641050694969,2.70326912,3707.8,3707.4,0.00511582]
[1641050695204,16.78,3708.3,3707.4,0.00511582]
[1641050695205,1.37687138,3707.9,3707.4,0.00511582]
[1641050695399,3.34489106,3707.8,3707.4,0.00511582]
[1641050695598,0.6744651,3707.7,3707.4,0.00511582]
[1641050695799,2.45346895,3707.6,3707.4,0.00511582]
[1641050696403,2.45346895,3707.6,3706.8,0.00852636]
[1641050697404,0.67447,3707.3,3706.8,0.00852636]
[1641050697806,1.34893,3707.4,3706.8,0.00852636]
[1641050698006,2.22592368,3707.3,3706.8,0.00852636]
[1641050698305,3.06567098,3707.3,3706.8,0.00852636]
[1641050698960,0.67447,3707.1,3706.8,0.00852636]
[1641050699363,3.06567098,3707.3,3706.6,0.0096632]
[1641050699960,3.06567098,3707.3,3706.6,0.6841332]
[1641050700359,0.67445,3707.1,3706.7,0.00909478]
[1641050700562,3.06567098,3707.3,3706.7,0.00909478]
[1641050700761,3.06567098,3707.3,3706.7,1.35787478]
[1641050700960,3.06567098,3707.3,3706.7,1.34878]
[1641050701161,3.06567098,3707.3,3706.8,0.00852636]
[1641050701364,3.06567098,3707.5,3706.8,0.00852636]
[1641050701760,3.06567098,3707.5,3707.0,0.67439]
[1641050702261,3.06567098,3707.5,3707.1,0.00682109]
[1641050702465,0.67441,3707.3,3707.1,0.00682109]
[1641050703101,3.06567098,3707.2,3707.1,0.00682109]
[1641050706958,3.06567098,3707.2,3707.1,1.35543109]
[1641050707758,3.06567098,3707.7,3707.1,1.35543109]
[1641050707963,3.06567098,3707.7,3707.2,0.33716]
[1641050708162,3.06567098,3707.7,3707.5,0.67431]
[1641050708565,3.06567098,3707.7,3707.6,0.00397897]
[1641050708964,3.73998098,3707.8,3707.6,0.00397897]
[1641050709365,3.06567098,3707.7,3707.6,0.67825897]
[1641050709763,3.06567098,3707.7,3707.6,1.36525897]
[1641050709962,3.12746146,3708.3,3707.6,1.66525897]
[1641050710205,3.12746146,3708.3,3707.7,2.51135186]
[1641050710409,3.12746146,3708.3,3707.8,0.387]
[1641050710607,3.12746146,3708.3,3708.1,0.6740746]
[1641050710803,0.06179048,3708.3,3708.1,0.6740746]
[1641050711308,0.0575,3708.9,3708.1,0.6740746]
[1641050711510,0.0575,3708.9,3708.1,2.26974139]
[1641050711708,7.85260054,3709.0,3708.5,1.6851651]
[1641050711709,0.00284211,3708.8,3708.5,1.6851651]
[1641050711911,0.00284211,3708.8,3708.5,1.01111]
[1641050712111,0.00227369,3708.7,3708.5,0.33703]
[1641050712509,0.00170527,3708.6,3708.5,0.33703]
[1641050712708,0.00170527,3708.6,3708.4,2.9962602]
[1641050712910,0.00170527,3708.6,3708.4,4.0572902]
[1641050713109,3.06473629,3709.1,3708.5,2.97728325]
[1641050713308,3.06473629,3709.1,3708.7,1.34794]
[1641050713508,0.00397896,3709.0,3708.7,1.34794]
[1641050713946,0.00341054,3708.9,3708.7,1.34794]
[1641050714148,0.00341054,3708.9,3708.7,2.0219048]
[1641050714450,3.06473629,3709.2,3708.7,2.7458948]
[1641050714451,0.00284211,3708.8,3708.7,2.7458948]
[1641050714655,0.00284211,3708.8,3708.7,2.07193]
[1641050715255,3.0675784,3708.8,3708.7,2.07193]
[1641050718206,0.00284211,3708.8,3708.7,2.07193]
[1641050723150,0.00284211,3708.8,3708.7,1.73494]
[1641050723351,0.00284211,3708.8,3708.7,0.387]
[1641050730848,0.00284211,3708.8,3708.7,2.67317399]
[1641050731051,0.00284211,3708.8,3708.7,0.387]
[1641050731452,0.00284211,3708.8,3708.7,2.67739799]
[1641050732152,0.00284211,3708.8,3708.7,0.387]
[1641050736466,0.00284211,3708.8,3708.7,2.66984138]
[1641050736668,0.00284211,3708.8,3708.7,0.387]
[1641050737964,0.00284211,3708.8,3708.7,0.687]
[1641050738769,0.00284211,3708.8,3708.7,3.10634337]
[1641050739371,0.00284211,3708.8,3708.7,4.10634337]
[1641050743606,0.00284211,3708.8,3708.7,0.387]
[1641050744855,1.87722032,3709.5,3708.7,0.387]
[1641050744856,0.67411,3709.2,3708.7,0.387]
[1641050745264,1.34824,3709.3,3708.7,0.387]
[1641050745460,3.06423216,3709.1,3708.7,0.387]
[1641050745859,0.00397896,3709.0,3708.7,0.387]
[1641050746159,0.00341054,3708.9,3708.7,0.387]
[1641050746558,0.00284211,3708.8,3708.7,0.387]
[1641050746756,0.00284211,3708.8,3708.2,1.3482]
[1641050746957,0.67417,3708.6,3708.2,1.3482]
[1641050747356,0.00113684,3708.5,3708.2,1.3482]
[1641050748006,0.00113684,3708.5,3708.3,0.6741223]
[1641050748404,0.00113684,3708.5,3708.4,0.67412]
[1641050751768,0.00113684,3708.5,3708.2,1.3482861]
[1641050751968,0.00113684,3708.5,3708.2,0.6741261]
[1641050752970,0.00113684,3708.5,3708.2,0.6241261]
[1641050753572,0.00113684,3708.5,3708.3,1.0112]
[1641050756424,0.67412,3708.8,3708.4,0.67413]
[1641050756827,0.00113685,3708.7,3708.4,0.67413]
[1641050757225,0.00113685,3708.7,3708.4,1.3482373]
[1641050757427,0.00113685,3708.7,3708.4,0.6741073]
[1641050757626,0.00113685,3708.7,3708.5,0.67411]
[1641050761054,0.00113685,3708.7,3708.5,1.3481695]
[1641050761256,0.00113685,3708.7,3708.6,0.387]
[1641050763513,0.00113685,3708.7,3708.6,1.7350167]
[1641050763711,0.00113685,3708.7,3708.6,4.04641477]
[1641050764109,5.97583988,3709.7,3709.4,0.0011]
[1641050764309,5.97583988,3709.7,3709.5,1.06092]
[1641050764509,5.97583988,3709.7,3709.5,1.69783]
[1641050764707,5.97583988,3709.7,3709.6,1.03247158]
[1641050764908,5.97583988,3709.7,3709.6,1.41947158]
[1641050764909,1.37896238,3709.7,3709.6,1.41947158]
[1641050765108,1.38464661,3709.7,3709.6,2.41947158]
[1641050765913,0.00568423,3709.7,3709.6,2.41947158]
[1641050766353,0.00568423,3709.7,3709.6,4.7573561]
[1641050767360,0.00568423,3709.7,3709.6,0.387]
[1641050767563,0.00568423,3709.7,3709.4,0.0011]
[1641050767762,6.18568423,3709.7,3709.4,0.0011]
[1641050767961,0.00511581,3709.6,3709.4,0.0011]
[1641050768461,6.18,3709.7,3709.4,0.0011]
[1641050768462,0.00454739,3709.5,3709.4,0.0011]
[1641050776465,3.06857029,3709.5,3709.4,0.0011]
[1641050780423,3.06857029,3709.5,3709.4,0.67503]
[1641050782672,3.06857029,3709.5,3709.4,1.06203]
[1641050783270,0.00454739,3709.5,3709.4,1.06203]
[1641050786816,0.00454739,3709.5,3709.4,3.37312973]
[1641050787012,0.00454739,3709.5,3709.4,1.06203]
[1641050789854,0.00454739,3709.5,3709.4,3.3850062]
[1641050790055,0.00454739,3709.5,3709.4,3.38509619]
[1641050790456,0.00454739,3709.5,3709.4,1.06203]
[1641050798761,0.06178711,3710.1,3709.4,1.06203]
[1641050799060,0.0073895,3710.0,3709.7,0.6738502]
[1641050799258,0.0073895,3710.0,3709.8,0.67386]
[1641050799459,0.00682108,3709.9,3709.8,0.67386]
[1641050800314,0.00682108,3709.9,3709.6,0.67389]
[1641050800515,0.00682108,3709.9,3709.6,1.06089]
[1641050800715,0.00625266,3709.8,3709.6,1.06089]
[1641050801111,3.06376111,3709.9,3709.6,0.387]
[1641050801112,0.00568423,3709.7,3709.6,0.387]
[1641050801517,1.05984876,3709.7,3709.6,0.387]
[1641050802018,4.12360987,3709.7,3709.6,0.387]
[1641050806168,3.07001377,3709.7,3709.6,0.387]
[1641050816313,3.07001377,3709.7,3709.6,0.687]
[1641050816514,3.07001377,3709.7,3709.6,3.06417276]
[1641050816814,3.07001377,3709.7,3709.6,3.17240406]
[1641050817013,3.07001377,3709.7,3709.6,0.687]
[1641050817215,1.8371581,3709.8,3709.6,1.687]
[1641050817417,2.74575787,3710.0,3709.8,1.33963959]
[1641050817616,3.63280093,3710.3,3709.8,1.33963959]
[1641050817617,3.63280093,3710.3,3709.9,2.87240406]
[1641050817817,3.63280093,3710.3,3710.0,1.36361973]
[1641050818019,0.00227369,3710.2,3710.1,0.387]
[1641050818215,3.63280093,3710.3,3710.1,0.387]
[1641050818417,2.69462,3713.8,3710.4,1.09532492]
[1641050818418,1.37700318,3711.3,3710.4,1.09532492]
[1641050818617,1.37700318,3711.3,3710.5,2.70757]
[1641050818862,6.88341054,3711.1,3710.5,2.70757]
[1641050819062,0.00113685,3711.0,3710.6,1.00113685]
[1641050819263,0.00113685,3711.0,3710.7,0.387]
[1641050819466,0.00113685,3711.0,3710.8,1.13166997]
[1641050819666,0.00113685,3711.0,3710.9,1.06047]
[1641050819869,0.00113685,3711.0,3710.9,3.53680136]
[1641050820063,0.00113685,3711.0,3710.9,4.53680136]
[1641050820668,0.00209852,3711.0,3710.9,4.53680136]
[1641050820870,0.00209852,3711.0,3710.9,2.06047]
[1641050821065,0.00209852,3711.0,3710.9,1.06047]
[1641050821265,0.00209852,3711.0,3710.9,0.387]
[1641050822470,0.00209852,3711.0,3710.6,0.00113685]
[1641050822725,0.95993,3710.8,3710.6,0.00113685]
[1641050822925,2.47699136,3710.7,3710.5,0.00170527]
[1641050823328,0.95993,3710.8,3710.5,0.00170527]
[1641050823725,0.95993,3710.8,3710.5,0.91460527]
[1641050824024,0.95993,3710.8,3710.6,0.38813684]
[1641050824626,0.95993,3710.8,3710.6,0.68813684]
[1641050824825,0.95993,3710.8,3710.7,1.34714]
[1641050825024,0.95993,3710.8,3710.7,2.33414]
[1641050825225,0.95993,3710.8,3710.7,7.05716903]
[1641050831022,0.96086747,3710.8,3710.7,7.05716903]
[1641050831423,0.00113685,3711.0,3710.8,0.67339]
[1641050831624,0.00113685,3711.0,3710.9,2.94200275]
[1641050831825,0.00113685,3711.0,3710.9,3.24200275]
[1641050832029,0.5801791,3711.5,3710.9,4.54200275]
[1641050832225,0.5801791,3711.5,3711.1,1.34676]
[1641050832529,0.00227369,3711.4,3711.2,0.67338]
[1641050832726,0.00227369,3711.4,3711.3,0.387]
[1641050832925,0.5801791,3711.5,3711.3,0.687]
[1641050834276,0.5801791,3711.5,3711.3,0.387]
[1641050834578,0.5801791,3711.5,3711.3,0.1876]
[1641050834777,0.5801791,3711.5,3710.7,2.43254767]
[1641050835176,0.5801791,3711.5,3710.8,0.00113684]
[1641050835577,0.67366,3711.4,3710.7,0.00170527]
[1641050835978,0.00170527,3711.3,3710.7,0.00170527]
[1641050836383,0.00113685,3711.2,3710.7,0.00170527]
[1641050836585,0.6737,3711.1,3710.7,0.00170527]
[1641050837287,3.06289324,3711.0,3710.7,0.00170527]
[1641050838431,3.06289324,3711.0,3710.7,0.67535527]
[1641050838832,3.06289324,3711.0,3710.8,0.00113685]
[1641050839232,3.06289324,3711.1,3710.8,0.00113685]
[1641050839637,3.06289324,3710.9,3710.8,0.00113685]
[1641050840135,3.06289324,3711.0,3710.8,0.00113685]
[1641050840733,0.00113685,3711.2,3710.8,0.00113685]
[1641050841133,0.00113685,3711.2,3710.9,0.67361]
[1641050841360,0.00113685,3711.2,3710.9,0.97361]
[1641050841566,0.00086353,3711.1,3710.9,0.97361]
[1641050842566,0.00086353,3711.1,3710.9,0.3]
[1641050842766,0.00086353,3711.1,3710.8,0.30113685]
[1641050843065,0.00086353,3711.1,3710.8,0.00113685]
[1641050843266,0.00086353,3711.1,3710.8,0.67476685]
[1641050843467,0.00086353,3711.1,3710.8,0.67363]
[1641050843665,0.00086353,3711.1,3710.8,0.97363]
[1641050844067,0.00086353,3711.1,3710.9,0.387]
[1641050845812,0.00086353,3711.1,3710.9,0.687]
[1641050846015,0.00086353,3711.1,3710.9,0.387]
[1641050846215,0.67456353,3711.1,3710.9,0.387]
[1641050848023,2.88775774,3711.1,3710.9,0.387]
[1641050848222,0.67456353,3711.1,3710.9,0.387]
[1641050851661,0.00086353,3711.1,3710.9,0.387]
[1641050853718,3.06381096,3711.1,3710.9,0.387]
[1641050855420,3.73752096,3711.1,3710.9,0.387]
[1641050855820,3.06381096,3711.1,3710.9,0.387]
[1641050869321,4.41114936,3711.1,3710.9,0.387]
[1641050869522,2.22735738,3711.0,3710.9,0.387]
[1641050869724,0.6737638,3710.9,3710.7,0.00170527]
[1641050870126,0.6737638,3710.9,3710.5,0.00284212]
[1641050870324,1.3474426,3710.8,3710.5,0.00284212]
[1641050870722,1.30228364,3710.7,3710.5,0.00284212]
[1641050871769,0.6737448,3710.7,3710.5,0.00284212]
[1641050872372,0.6737448,3710.7,3710.5,0.30284212]
[1641050872768,0.6737448,3710.7,3710.6,0.00227369]
[1641050876311,0.6737448,3710.7,3710.5,0.00284212]
[1641050876516,0.6737448,3710.7,3710.5,0.30284212]
[1641050876914,0.6737448,3710.7,3710.6,0.00227369]
[1641050878319,0.6737448,3710.7,3710.5,0.00284212]
[1641050879573,0.6737448,3710.7,3710.5,0.30284212]
[1641050879974,0.6737448,3710.7,3710.6,0.00227369]
[1641050881178,3.73684254,3710.7,3710.6,0.00227369]
[1641050881777,0.6737448,3710.7,3710.6,0.00227369]
[1641050882819,0.674566,3710.7,3710.6,0.00227369]
[1641050887984,0.674566,3710.7,3710.6,2.80488769]
[1641050887985,0.0008212,3710.7,3710.6,2.80488769]
[1641050888179,0.06257117,3711.6,3711.1,0.67352]
[1641050888380,0.06257117,3711.6,3711.2,0.387]
[1641050888580,0.00227369,3711.4,3711.3,0.3]
[1641050888779,0.00227369,3711.4,3711.3,0.687]
[1641050888979,0.00227369,3711.4,3711.3,0.987]
[1641050889180,0.00227369,3711.4,3711.3,3.62234586]
[1641050889380,0.5801791,3711.5,3711.3,3.62234586]
[1641050889584,0.5801791,3711.5,3711.3,4.62234586]
[1641050889781,0.5801791,3711.5,3711.4,1.0]
[1641050889982,0.5801791,3711.5,3711.4,1.387]
[1641050890416,0.5801791,3711.5,3711.4,3.86608749]
[1641050890628,0.5801791,3711.5,3711.4,1.387]
[1641050890822,0.5801791,3711.5,3711.4,0.387]
[1641050891125,0.5801791,3711.5,3711.1,4.842]
[1641050891126,0.5801791,3711.5,3711.1,0.67361]
[1641050891327,2.4102853,3711.4,3711.0,2.6954667]
[1641050891523,1.3474542,3711.3,3711.2,0.00113684]
[1641050891723,1.3474542,3711.3,3711.1,0.00170527]
[1641050892523,1.33214737,3711.2,3711.1,0.00170527]
[1641050892724,1.33214737,3711.2,3711.0,0.00227369]
[1641050892725,4.39456731,3711.2,3711.0,0.00227369]
[1641050892922,5.06828311,3711.2,3711.0,0.00227369]
[1641050893323,2.00586317,3711.2,3711.0,0.00227369]
[1641050893523,0.01066131,3711.1,3711.0,0.00227369]
[1641050893724,0.01066131,3711.1,3710.8,0.0009159]
[1641050893725,0.01066131,3711.1,3710.9,0.00284211]
[1641050893971,3.07308125,3711.1,3710.9,0.00284211]
[1641050894170,0.01066131,3711.1,3710.9,0.00284211]
[1641050894978,3.06241994,3711.0,3710.9,0.00284211]
[1641050899019,3.07308168,3711.0,3710.9,0.00284211]
[1641050900820,0.01066174,3711.0,3710.9,0.00284211]
[1641050901468,3.07342048,3711.0,3710.9,0.00284211]
[1641050901869,0.01066174,3711.0,3710.9,0.00284211]
[1641050902570,3.07342048,3711.0,3710.9,0.00284211]
[1641050906528,5.28098888,3711.0,3710.9,0.00284211]
[1641050906726,5.28377641,3711.0,3710.9,0.00284211]
[1641050907324,3.74724008,3711.0,3710.8,0.0009159]
[1641050908981,5.38392477,3710.9,3710.8,0.0009159]
[1641050912731,3.06275874,3710.9,3710.8,0.0009159]
[1641050913032,5.25206784,3710.9,3710.8,0.0009159]
[1641050913231,3.06275874,3710.9,3710.8,0.0009159]
[1641050913430,5.25251987,3710.9,3710.8,0.0009159]
[1641050913629,3.06275874,3710.9,3710.8,0.0009159]
[1641050913832,5.27355997,3710.9,3710.8,0.0009159]
[1641050915030,3.06275874,3710.9,3710.8,0.0009159]
[1641050916030,5.30079323,3710.9,3710.8,0.0009159]
[1641050916479,3.06275874,3710.9,3710.8,0.0009159]
[1641050917681,5.76275874,3710.9,3710.8,0.0009159]
[1641050918781,7.96877236,3710.9,3710.8,0.0009159]
[1641050921022,5.76275874,3710.9,3710.8,0.0009159]
[1641050921221,7.97097694,3710.9,3710.8,0.0009159]
[1641050924976,5.76275874,3710.9,3710.8,0.0009159]
[1641050925576,7.98455048,3710.9,3710.8,0.0009159]
[1641050926786,5.76275874,3710.9,3710.8,0.0009159]
[1641050936431,5.76275874,3710.9,3710.8,1.36909798]
[1641050937330,2.7,3710.9,3710.8,1.36909798]
[1641050938131,2.7,3710.9,3710.7,0.09669798]
[1641050938733,2.7,3710.9,3710.5,0.387]
[1641050939181,2.7,3710.9,3710.6,0.00170527]
[1641050939381,0.6736412,3710.8,3710.6,0.00170527]
[1641050939787,0.6736412,3710.8,3710.7,0.6737]
[1641050940187,0.6736412,3710.8,3710.7,0.67483685]
[1641050941291,2.7,3710.9,3710.7,1.06183685]
[1641050946131,2.7,3710.9,3710.7,4.50725266]
[1641050946379,2.7,3710.9,3710.7,4.78906183]
[1641050946782,2.7,3710.9,3710.7,2.66183685]
[1641050946983,2.7,3710.9,3710.7,4.78550559]
[1641050947186,2.7,3710.9,3710.7,4.83464628]
[1641050947384,2.7,3710.9,3710.8,2.14287989]
[1641050947586,2.7,3710.9,3710.8,7.02987989]
[1641050947785,2.7,3710.9,3710.8,4.887]
[1641050947987,2.7,3710.9,3710.8,1.387]
[1641050948586,2.7,3710.9,3710.8,3.57638575]
[1641050948989,2.7,3710.9,3710.8,1.387]
[1641050949190,2.7,3710.9,3710.8,0.387]
[1641050953888,2.7,3710.9,3710.8,0.287]
[1641050959540,2.7,3710.9,3710.8,2.43407629]
[1641050959741,2.7,3710.9,3710.8,3.43407629]
[1641050960344,2.7,3710.9,3710.8,1.287]
[1641050960941,2.7,3710.9,3710.8,1.187]
[1641050961144,2.7,3710.9,3710.8,0.187]
[1641050962582,2.7,3710.9,3710.8,2.3068703]
[1641050962787,2.7,3710.9,3710.8,8.1488703]
[1641050963086,2.7,3710.9,3710.8,15.1488703]
[1641050963285,0.01066174,3711.0,3710.9,0.67346]
[1641050963486,0.01066174,3711.0,3710.9,8.57177764]
[1641050963689,0.01066174,3711.0,3710.9,9.87177764]
[1641050965428,0.01066174,3711.0,3710.9,7.50246]
[1641050966234,0.01066174,3711.0,3710.9,9.69816398]
[1641050966832,0.01066174,3711.0,3710.9,7.50246]
[1641050967539,0.01066174,3711.0,3710.9,9.67670635]
[1641050967734,0.01066174,3711.0,3710.9,7.50246]
[1641050967932,0.01066174,3711.0,3710.9,9.66448445]
[1641050968132,2.71066174,3711.0,3710.9,9.66448445]
[1641050968991,2.71066174,3711.0,3710.9,10.1979267]
[1641050969394,0.01066174,3711.0,3710.9,10.1979267]
[1641050970501,0.01066174,3711.0,3710.9,7.50246]
[1641050970699,0.01066174,3711.0,3710.9,9.65294241]
[1641050973930,9.1338651,3712.3,3710.9,9.65294241]
[1641050973931,0.67345,3712.7,3712.3,0.57344059]
[1641050974130,8.200447,3712.8,3712.4,0.387]
[1641050974131,6.13,3712.8,3712.4,0.387]
[1641050974328,6.13,3712.8,3712.6,4.842]
[1641050974528,2.7564818,3713.4,3712.6,5.22637419]
[1641050974529,1.37700318,3713.1,3712.6,5.22637419]
[1641050974730,1.37700318,3713.1,3712.7,1.2875]
[1641050974928,0.01080004,3712.8,3712.7,2.68070144]
[1641050975127,1.37700318,3713.1,3712.7,7.90970144]
[1641050975330,1.32700318,3713.1,3713.0,4.842]
[1641050975533,1.32700318,3713.1,3713.0,6.20205]
[1641050976135,1.83580688,3713.4,3713.0,6.50205]
[1641050976379,1.83580688,3713.4,3713.2,0.67311]
[1641050976587,0.00284212,3713.3,3713.2,1.3]
[1641050976786,0.00284212,3713.3,3713.2,1.67312]
[1641050976983,0.06220174,3713.8,3713.2,1.97312]
[1641050976984,0.00511581,3713.7,3713.2,1.97312]
[1641050977182,0.00511581,3713.7,3713.3,0.387]
[1641050977383,1.14977775,3713.8,3713.3,0.687]
[1641050977384,0.00454739,3713.6,3713.3,0.687]
[1641050977783,0.00397897,3713.5,3713.4,1.34625]
[1641050977985,0.00397897,3713.5,3713.4,1.73325]
[1641050978183,0.00397897,3713.5,3713.4,2.03325]
[1641050979584,3.06499381,3713.5,3713.4,2.03325]
[1641050982540,3.06499381,3713.5,3713.4,1.73325]
[1641050983341,4.41685515,3713.5,3713.4,1.73325]
[1641050983540,4.41685515,3713.5,3713.4,0.387]
[1641050984883,4.41792378,3713.5,3713.4,0.387]
[1641050991590,1.35690894,3713.5,3713.4,0.387]
[1641050995240,1.35690894,3713.5,3713.4,0.687]
[1641050996847,0.0050476,3713.5,3713.4,0.687]
[1641050998548,0.0050476,3713.5,3713.4,0.387]
[1641051003029,0.0050476,3713.5,3713.4,0.687]
[1641051006038,0.00106863,3713.5,3713.4,0.687]
[1641051006693,0.0050476,3713.5,3713.4,0.687]
[1641051008992,0.0050476,3713.5,3713.4,0.387]
[1641051009393,0.0050476,3713.5,3713.4,1.15949484]
[1641051012041,0.0050476,3713.5,3713.4,1.75949484]
[1641051012942,0.0050476,3713.5,3713.4,1.15949484]
[1641051014787,0.0050476,3713.5,3713.4,1.45949484]
[1641051014989,0.0050476,3713.5,3713.4,1.15949484]
[1641051018641,0.0050476,3713.5,3713.4,1.75949484]
[1641051023497,0.0050476,3713.5,3713.4,4.8496433]
[1641051023705,0.0050476,3713.5,3713.4,2.75949484]
[1641051024700,0.0050476,3713.5,3713.4,1.75949484]
[1641051024901,0.0050476,3713.5,3713.4,2.75949484]
[1641051026141,0.0050476,3713.5,3713.4,1.75949484]
[1641051027041,0.0050476,3713.5,3713.4,3.90048161]
[1641051027242,0.0050476,3713.5,3713.4,1.75949484]
[1641051028644,0.0050476,3713.5,3713.4,2.92612765]
[1641051029084,0.0050476,3713.5,3713.4,3.92612765]
[1641051031091,0.0615,3714.4,3713.8,0.67297]